[Event "Titled Tuesday Blitz April 25 Early 2023"]
[White "Ljukin, Sergei"]
[Black "Inepton_Fermion"]
[WhiteFideId "14102200"]
[WhiteElo "2312"]
[BlackElo "2329"]
[Result "0-1"]
[Round "04"]
[TimeControl "180+2"]
[Date "2023.04.25"]
[WhiteClock "0:00:02"]
[BlackClock "0:00:11"]

1. e4 {[%clk 0:02:51]}  g6 {[%clk 0:03:00]} 2. d4 {[%clk 0:02:51]}  Bg7 {[%clk 0:03:01]} 3. Nc3 {[%clk 0:02:51]}  d5 {[%clk 0:03:02]} 4. Nxd5 {[%clk 0:02:50]}  c6 {[%clk 0:03:01]} 5. Ne3 {[%clk 0:02:46]}  Qxd4 {[%clk 0:03:01]} 6. Qxd4 {[%clk 0:02:31]}  Bxd4 {[%clk 0:03:02]} 7. a4 {[%clk 0:02:08]}  Be6 {[%clk 0:02:48]} 8. Nf3 {[%clk 0:02:07]}  Bg7 {[%clk 0:02:47]} 9. Ng5 {[%clk 0:02:06]}  Bd7 {[%clk 0:02:44]} 10. Bc4 {[%clk 0:02:04]}  e6 {[%clk 0:02:39]} 11. f4 {[%clk 0:01:52]}  c5 {[%clk 0:02:33]} 12. e5 {[%clk 0:01:45]}  Bc6 {[%clk 0:02:31]} 13. Bb5 {[%clk 0:01:40]}  a6 {[%clk 0:02:01]} 14. Bxc6+ {[%clk 0:01:38]}  Nxc6 {[%clk 0:02:02]} 15. Ne4 {[%clk 0:01:38]}  b6 {[%clk 0:02:02]} 16. Nd6+ {[%clk 0:01:35]}  Ke7 {[%clk 0:02:02]} 17. Nec4 {[%clk 0:01:15]}  Rb8 {[%clk 0:02:02]} 18. Be3 {[%clk 0:01:09]}  Nh6 {[%clk 0:01:59]} 19. a5 {[%clk 0:00:47]}  b5 {[%clk 0:01:57]} 20. Nb6 {[%clk 0:00:36]}  Nd4 {[%clk 0:01:39]} 21. O-O-O {[%clk 0:00:31]}  Nhf5 {[%clk 0:01:35]} 22. Bf2 {[%clk 0:00:30]}  Rhd8 {[%clk 0:01:17]} 23. b4 {[%clk 0:00:19]}  Nxd6 {[%clk 0:00:58]} 24. exd6+ {[%clk 0:00:19]}  Rxd6 {[%clk 0:00:59]} 25. bxc5 {[%clk 0:00:19]}  Ne2+ {[%clk 0:01:00]} 26. Kb1 {[%clk 0:00:17]}  Nc3+ {[%clk 0:00:59]} 27. Kc1 {[%clk 0:00:15]}  Na2+ {[%clk 0:00:45]} 28. Kb1 {[%clk 0:00:15]}  Nc3+ {[%clk 0:00:45]} 29. Kc1 {[%clk 0:00:15]}  Rxd1+ {[%clk 0:00:44]} 30. Rxd1 {[%clk 0:00:14]}  Nxd1 {[%clk 0:00:45]} 31. Kxd1 {[%clk 0:00:15]}  Bc3 {[%clk 0:00:31]} 32. f5 {[%clk 0:00:05]}  Bxa5 {[%clk 0:00:28]} 33. f6+ {[%clk 0:00:03]}  Ke8 {[%clk 0:00:20]} 34. Bg3 {[%clk 0:00:02]}  Rb7 {[%clk 0:00:12]} 35. Nc8 {[%clk 0:00:02]}  Bc7 {[%clk 0:00:11]} 0-1


[Site "https://www.chess.com"]

[Event "Titled Tuesday Blitz April 25 Early 2023"]
[White "Prudnykova, Olga"]
[Black "Korelskiy, Egor"]
[WhiteFideId "14121093"]
[BlackFideId "34329064"]
[WhiteElo "2113"]
[BlackElo "2186"]
[Result "1-0"]
[Round "04"]
[TimeControl "180+2"]
[Date "2023.04.25"]
[WhiteClock "0:00:03"]
[BlackClock "0:00:01"]

1. e4 {[%clk 0:02:58]}  c5 {[%clk 0:02:59]} 2. Nf3 {[%clk 0:02:57]}  e6 {[%clk 0:02:59]} 3. Nc3 {[%clk 0:02:56]}  a6 {[%clk 0:02:58]} 4. d4 {[%clk 0:02:56]}  cxd4 {[%clk 0:02:59]} 5. Nxd4 {[%clk 0:02:56]}  Qc7 {[%clk 0:02:58]} 6. Qf3 {[%clk 0:02:55]}  Nf6 {[%clk 0:02:54]} 7. Bg5 {[%clk 0:02:27]}  Be7 {[%clk 0:02:53]} 8. O-O-O {[%clk 0:02:22]}  d6 {[%clk 0:02:53]} 9. g4 {[%clk 0:02:13]}  Nbd7 {[%clk 0:02:49]} 10. Rg1 {[%clk 0:02:11]}  h6 {[%clk 0:02:42]} 11. Be3 {[%clk 0:02:08]}  Ne5 {[%clk 0:02:38]} 12. Qh3 {[%clk 0:02:03]}  b5 {[%clk 0:02:26]} 13. g5 {[%clk 0:01:59]}  Nfd7 {[%clk 0:01:59]} 14. f4 {[%clk 0:01:52]}  Ng6 {[%clk 0:01:55]} 15. f5 {[%clk 0:01:46]}  hxg5 {[%clk 0:01:51]} 16. Qg3 {[%clk 0:01:37]}  exf5 {[%clk 0:01:34]} 17. exf5 {[%clk 0:01:33]}  Nge5 {[%clk 0:01:29]} 18. Nd5 {[%clk 0:01:32]}  Qd8 {[%clk 0:01:26]} 19. Nxe7 {[%clk 0:01:09]}  Qxe7 {[%clk 0:01:21]} 20. Bxg5 {[%clk 0:01:09]}  Nf6 {[%clk 0:01:09]} 21. Bf4 {[%clk 0:01:00]}  Bb7 {[%clk 0:00:53]} 22. Bxe5 {[%clk 0:00:58]}  dxe5 {[%clk 0:00:49]} 23. Re1 {[%clk 0:00:58]}  Ne4 {[%clk 0:00:36]} 24. Qxg7 {[%clk 0:00:49]}  O-O-O {[%clk 0:00:36]} 25. Nb3 {[%clk 0:00:41]}  Rxh2 {[%clk 0:00:20]} 26. Bd3 {[%clk 0:00:40]}  Nf6 {[%clk 0:00:12]} 27. Qg3 {[%clk 0:00:36]}  Rhh8 {[%clk 0:00:06]} 28. Qxe5 {[%clk 0:00:31]}  Qxe5 {[%clk 0:00:05]} 29. Rxe5 {[%clk 0:00:31]}  Rhg8 {[%clk 0:00:05]} 30. Rxg8 {[%clk 0:00:25]}  Rxg8 {[%clk 0:00:06]} 31. Re7 {[%clk 0:00:25]}  Rg1+ {[%clk 0:00:06]} 32. Kd2 {[%clk 0:00:24]}  Rg2+ {[%clk 0:00:06]} 33. Ke1 {[%clk 0:00:19]}  Bd5 {[%clk 0:00:05]} 34. Nc5 {[%clk 0:00:16]}  Ng4 {[%clk 0:00:03]} 35. Nxa6 {[%clk 0:00:14]}  Rg1+ {[%clk 0:00:02]} 36. Ke2 {[%clk 0:00:13]}  Rg2+ {[%clk 0:00:02]} 37. Kf1 {[%clk 0:00:10]}  Nh2+ {[%clk 0:00:02]} 38. Ke1 {[%clk 0:00:10]}  Nf3+ {[%clk 0:00:02]} 39. Kd1 {[%clk 0:00:09]}  Rd2+ {[%clk 0:00:03]} 40. Kc1 {[%clk 0:00:08]}  Rg2 {[%clk 0:00:03]} 41. b3 {[%clk 0:00:07]}  Nd4 {[%clk 0:00:02]} 42. Re5 {[%clk 0:00:05]}  Rg1+ {[%clk 0:00:02]} 43. Kb2 {[%clk 0:00:05]}  Bb7 {[%clk 0:00:03]} 44. Nc5 {[%clk 0:00:04]}  Bc6 {[%clk 0:00:03]} 45. Ne4 {[%clk 0:00:04]}  Nf3 {[%clk 0:00:02]} 46. Re7 {[%clk 0:00:03]}  f6 {[%clk 0:00:02]} 47. Rf7 {[%clk 0:00:03]}  Ne5 {[%clk 0:00:01]} 48. Rxf6 {[%clk 0:00:03]}  Rg2 {[%clk 0:00:02]} 49. Kc3 {[%clk 0:00:02]}  b4+ {[%clk 0:00:01]} 50. Kd4 {[%clk 0:00:02]}  Nf3+ {[%clk 0:00:01]} 51. Kc5 {[%clk 0:00:03]}  Bb7 {[%clk 0:00:01]} 52. Rf8+ {[%clk 0:00:02]}  Kd7 {[%clk 0:00:01]} 53. Rf7+ {[%clk 0:00:03]}  Kc8 {[%clk 0:00:01]} 54. Nd6+ {[%clk 0:00:03]}  Kd8 {[%clk 0:00:02]} 55. Rxb7 {[%clk 0:00:04]}  Ne5 {[%clk 0:00:01]} 56. Bc4 {[%clk 0:00:03]}  Nd7+ {[%clk 0:00:01]} 57. Kc6 {[%clk 0:00:03]}  Rd2 {[%clk 0:00:01]} 58. Rxd7# {[%clk 0:00:03]} 1-0


[Site "https://www.chess.com"]

[Event "Titled Tuesday Blitz April 25 Early 2023"]
[White "ilya2700"]
[Black "Petukhov, Dmitry"]
[BlackFideId "4142748"]
[WhiteElo "2285"]
[BlackElo "2311"]
[Result "0-1"]
[Round "04"]
[TimeControl "180+2"]
[Date "2023.04.25"]
[WhiteClock "0:00:53"]
[BlackClock "0:02:07"]

1. e4 {[%clk 0:02:58]}  c5 {[%clk 0:02:59]} 2. c4 {[%clk 0:02:59]}  Nc6 {[%clk 0:02:59]} 3. Ne2 {[%clk 0:02:59]}  e5 {[%clk 0:02:59]} 4. d3 {[%clk 0:03:00]}  Be7 {[%clk 0:02:57]} 5. Nbc3 {[%clk 0:03:01]}  Nf6 {[%clk 0:02:57]} 6. g3 {[%clk 0:03:01]}  Nd4 {[%clk 0:02:56]} 7. Bg2 {[%clk 0:03:01]}  d6 {[%clk 0:02:56]} 8. O-O {[%clk 0:03:02]}  h5 {[%clk 0:02:56]} 9. f4 {[%clk 0:03:03]}  h4 {[%clk 0:02:56]} 10. fxe5 {[%clk 0:02:52]}  dxe5 {[%clk 0:02:54]} 11. Bg5 {[%clk 0:02:45]}  hxg3 {[%clk 0:02:50]} 12. hxg3 {[%clk 0:02:46]}  Ng4 {[%clk 0:02:49]} 13. Bxe7 {[%clk 0:02:37]}  Qxe7 {[%clk 0:02:49]} 14. Nd5 {[%clk 0:02:36]}  Qg5 {[%clk 0:02:48]} 15. Nxd4 {[%clk 0:02:15]}  exd4 {[%clk 0:02:44]} 16. Rf4 {[%clk 0:01:26]}  Qh5 {[%clk 0:02:29]} 17. Nc7+ {[%clk 0:01:11]}  Kd8 {[%clk 0:02:27]} 18. Nxa8 {[%clk 0:01:03]}  Qh2+ {[%clk 0:02:26]} 19. Kf1 {[%clk 0:01:03]}  Ne3+ {[%clk 0:02:27]} 20. Ke2 {[%clk 0:01:00]}  Qxg2+ {[%clk 0:02:17]} 21. Rf2 {[%clk 0:00:59]}  Bg4+ {[%clk 0:02:17]} 22. Ke1 {[%clk 0:00:54]}  Rh1+ {[%clk 0:02:09]} 23. Kd2 {[%clk 0:00:53]}  Qxf2+ {[%clk 0:02:07]} 0-1


[Site "https://www.chess.com"]

[Event "Titled Tuesday Blitz April 25 Early 2023"]
[White "Romkachess"]
[Black "Albuquerque Junior,Wellington S."]
[BlackFideId "2151480"]
[WhiteElo "2482"]
[BlackElo "2109"]
[Result "1/2-1/2"]
[Round "04"]
[TimeControl "180+2"]
[Date "2023.04.25"]
[WhiteClock "0:00:11"]
[BlackClock "0:00:40"]

1. e4 {[%clk 0:03:00]}  c5 {[%clk 0:03:00]} 2. Nf3 {[%clk 0:03:00]}  d6 {[%clk 0:03:00]} 3. d4 {[%clk 0:03:01]}  cxd4 {[%clk 0:03:01]} 4. Nxd4 {[%clk 0:03:01]}  Nf6 {[%clk 0:03:02]} 5. Nc3 {[%clk 0:03:01]}  Nc6 {[%clk 0:03:02]} 6. Bg5 {[%clk 0:03:00]}  Bd7 {[%clk 0:03:03]} 7. Qd2 {[%clk 0:02:58]}  Rc8 {[%clk 0:03:03]} 8. O-O-O {[%clk 0:02:55]}  Nxd4 {[%clk 0:03:02]} 9. Qxd4 {[%clk 0:02:56]}  Qa5 {[%clk 0:03:03]} 10. Bd2 {[%clk 0:02:44]}  Qc5 {[%clk 0:02:46]} 11. Qxc5 {[%clk 0:02:37]}  Rxc5 {[%clk 0:02:46]} 12. f3 {[%clk 0:02:36]}  a6 {[%clk 0:02:44]} 13. g4 {[%clk 0:02:35]}  h6 {[%clk 0:02:26]} 14. Be3 {[%clk 0:02:33]}  Rc8 {[%clk 0:02:24]} 15. Bg2 {[%clk 0:02:29]}  Bc6 {[%clk 0:02:21]} 16. h4 {[%clk 0:02:29]}  e6 {[%clk 0:02:16]} 17. Bf4 {[%clk 0:02:20]}  Rd8 {[%clk 0:02:08]} 18. g5 {[%clk 0:02:05]}  Nh5 {[%clk 0:02:07]} 19. Bh2 {[%clk 0:02:03]}  Be7 {[%clk 0:01:55]} 20. f4 {[%clk 0:01:52]}  g6 {[%clk 0:01:37]} 21. Bf3 {[%clk 0:01:38]}  Ng7 {[%clk 0:01:25]} 22. Bg3 {[%clk 0:01:27]}  h5 {[%clk 0:01:25]} 23. Rhe1 {[%clk 0:01:09]}  O-O {[%clk 0:01:22]} 24. Bf2 {[%clk 0:00:49]}  Rd7 {[%clk 0:01:06]} 25. Bb6 {[%clk 0:00:25]}  Rc8 {[%clk 0:01:07]} 26. Kb1 {[%clk 0:00:18]}  Ne8 {[%clk 0:01:07]} 27. b3 {[%clk 0:00:17]}  Bf8 {[%clk 0:01:07]} 28. Bd4 {[%clk 0:00:16]}  b5 {[%clk 0:01:05]} 29. a3 {[%clk 0:00:16]}  Bg7 {[%clk 0:00:56]} 30. Bxg7 {[%clk 0:00:15]}  Kxg7 {[%clk 0:00:57]} 31. Kb2 {[%clk 0:00:15]}  Bb7 {[%clk 0:00:57]} 32. Rd3 {[%clk 0:00:14]}  Nc7 {[%clk 0:00:51]} 33. Red1 {[%clk 0:00:13]}  Rcd8 {[%clk 0:00:52]} 34. Ne2 {[%clk 0:00:11]}  Na8 {[%clk 0:00:48]} 35. Ng3 {[%clk 0:00:11]}  Nb6 {[%clk 0:00:46]} 36. f5 {[%clk 0:00:11]}  exf5 {[%clk 0:00:45]} 37. exf5 {[%clk 0:00:12]}  Bxf3 {[%clk 0:00:45]} 38. Rxf3 {[%clk 0:00:12]}  d5 {[%clk 0:00:42]} 39. fxg6 {[%clk 0:00:09]}  fxg6 {[%clk 0:00:41]} 40. Rdf1 {[%clk 0:00:08]}  Re8 {[%clk 0:00:40]} 41. Rf6 {[%clk 0:00:08]}  Nc8 {[%clk 0:00:38]} 42. Rxa6 {[%clk 0:00:07]}  Rd6 {[%clk 0:00:38]} 43. Rxd6 {[%clk 0:00:06]}  Nxd6 {[%clk 0:00:39]} 44. Rf6 {[%clk 0:00:06]}  Ne4 {[%clk 0:00:39]} 45. Nxe4 {[%clk 0:00:06]}  Rxe4 {[%clk 0:00:40]} 46. Rd6 {[%clk 0:00:04]}  d4 {[%clk 0:00:40]} 47. Rd7+ {[%clk 0:00:03]}  Kf8 {[%clk 0:00:40]} 48. a4 {[%clk 0:00:04]}  bxa4 {[%clk 0:00:40]} 49. bxa4 {[%clk 0:00:05]}  Ke8 {[%clk 0:00:41]} 50. Rg7 {[%clk 0:00:05]}  d3 {[%clk 0:00:39]} 51. cxd3 {[%clk 0:00:04]}  Rxa4 {[%clk 0:00:40]} 52. Rxg6 {[%clk 0:00:04]}  Rxh4 {[%clk 0:00:41]} 53. Kc3 {[%clk 0:00:04]}  Kf7 {[%clk 0:00:41]} 54. Rh6 {[%clk 0:00:04]}  Kg7 {[%clk 0:00:41]} 55. Rd6 {[%clk 0:00:03]}  Rg4 {[%clk 0:00:41]} 56. d4 {[%clk 0:00:02]}  Rxg5 {[%clk 0:00:41]} 57. Rd7+ {[%clk 0:00:03]}  Kg6 {[%clk 0:00:41]} 58. Ra7 {[%clk 0:00:04]}  h4 {[%clk 0:00:41]} 59. Kc4 {[%clk 0:00:04]}  Kh5 {[%clk 0:00:41]} 60. Ra2 {[%clk 0:00:04]}  h3 {[%clk 0:00:41]} 61. Rh2 {[%clk 0:00:05]}  Kh4 {[%clk 0:00:42]} 62. d5 {[%clk 0:00:05]}  Kg3 {[%clk 0:00:42]} 63. Rh1 {[%clk 0:00:05]}  Kg2 {[%clk 0:00:43]} 64. Rc1 {[%clk 0:00:05]}  h2 {[%clk 0:00:43]} 65. Kc5 {[%clk 0:00:05]}  h1=Q {[%clk 0:00:42]} 66. Rxh1 {[%clk 0:00:06]}  Kxh1 {[%clk 0:00:43]} 67. Kc6 {[%clk 0:00:06]}  Kg2 {[%clk 0:00:42]} 68. d6 {[%clk 0:00:07]}  Kf3 {[%clk 0:00:42]} 69. d7 {[%clk 0:00:08]}  Rg8 {[%clk 0:00:41]} 70. Kc7 {[%clk 0:00:09]}  Ke4 {[%clk 0:00:40]} 71. d8=Q {[%clk 0:00:10]}  Rxd8 {[%clk 0:00:40]} 72. Kxd8 {[%clk 0:00:11]} 1/2-1/2


[Site "https://www.chess.com"]

[Event "Titled Tuesday Blitz April 25 Early 2023"]
[White "Shaik Sumer Arsh"]
[Black "Tsyhanchuk, Stanislav"]
[WhiteFideId "45020000"]
[BlackFideId "13505130"]
[WhiteElo "2350"]
[BlackElo "2173"]
[Result "1-0"]
[Round "04"]
[TimeControl "180+2"]
[Date "2023.04.25"]
[WhiteClock "0:00:41"]
[BlackClock "0:00:10"]

1. d4 {[%clk 0:03:00]}  Nf6 {[%clk 0:02:59]} 2. c4 {[%clk 0:03:01]}  e6 {[%clk 0:02:59]} 3. Nc3 {[%clk 0:03:02]}  Bb4 {[%clk 0:02:59]} 4. e3 {[%clk 0:03:02]}  b6 {[%clk 0:02:59]} 5. f3 {[%clk 0:03:01]}  O-O {[%clk 0:02:56]} 6. e4 {[%clk 0:02:38]}  d5 {[%clk 0:02:54]} 7. e5 {[%clk 0:02:33]}  Nfd7 {[%clk 0:02:53]} 8. cxd5 {[%clk 0:02:31]}  exd5 {[%clk 0:02:53]} 9. f4 {[%clk 0:02:27]}  c5 {[%clk 0:02:44]} 10. a3 {[%clk 0:02:27]}  Bxc3+ {[%clk 0:02:44]} 11. bxc3 {[%clk 0:02:26]}  cxd4 {[%clk 0:02:30]} 12. cxd4 {[%clk 0:02:17]}  f6 {[%clk 0:02:30]} 13. Nf3 {[%clk 0:02:13]}  fxe5 {[%clk 0:02:30]} 14. fxe5 {[%clk 0:02:02]}  Rxf3 {[%clk 0:02:00]} 15. Qxf3 {[%clk 0:01:55]}  Qh4+ {[%clk 0:02:00]} 16. Qf2 {[%clk 0:01:51]}  Qe4+ {[%clk 0:02:00]} 17. Qe3 {[%clk 0:01:49]}  Qh4+ {[%clk 0:01:35]} 18. g3 {[%clk 0:01:48]}  Qe7 {[%clk 0:01:28]} 19. Bg2 {[%clk 0:01:43]}  Bb7 {[%clk 0:01:25]} 20. O-O {[%clk 0:01:42]}  Na6 {[%clk 0:01:19]} 21. Bd2 {[%clk 0:01:27]}  Nf8 {[%clk 0:01:12]} 22. Qb3 {[%clk 0:01:22]}  Nc7 {[%clk 0:01:03]} 23. Rac1 {[%clk 0:01:16]}  Nfe6 {[%clk 0:01:01]} 24. Bb4 {[%clk 0:01:06]}  Qd7 {[%clk 0:00:55]} 25. Qe3 {[%clk 0:00:57]}  Ba6 {[%clk 0:00:51]} 26. Rf2 {[%clk 0:00:53]}  Bc4 {[%clk 0:00:51]} 27. Bf1 {[%clk 0:00:52]}  b5 {[%clk 0:00:47]} 28. Bxc4 {[%clk 0:00:51]}  dxc4 {[%clk 0:00:37]} 29. Rcf1 {[%clk 0:00:51]}  Nd5 {[%clk 0:00:36]} 30. Qf3 {[%clk 0:00:48]}  h6 {[%clk 0:00:21]} 31. Bd6 {[%clk 0:00:48]}  Nb6 {[%clk 0:00:17]} 32. d5 {[%clk 0:00:43]}  Ng5 {[%clk 0:00:16]} 33. Qg2 {[%clk 0:00:43]}  c3 {[%clk 0:00:14]} 34. Rf8+ {[%clk 0:00:41]}  Rxf8 {[%clk 0:00:13]} 35. Rxf8+ {[%clk 0:00:42]}  Kh7 {[%clk 0:00:14]} 36. h4 {[%clk 0:00:43]}  Nh3+ {[%clk 0:00:10]} 37. Kh2 {[%clk 0:00:43]}  c2 {[%clk 0:00:10]} 38. Qxc2+ {[%clk 0:00:42]}  g6 {[%clk 0:00:11]} 39. Qc7 {[%clk 0:00:39]}  Qxc7 {[%clk 0:00:10]} 40. Bxc7 {[%clk 0:00:39]}  Nf2 {[%clk 0:00:11]} 41. Rxf2 {[%clk 0:00:39]}  Nc4 {[%clk 0:00:11]} 42. d6 {[%clk 0:00:38]}  Nxe5 {[%clk 0:00:09]} 43. d7 {[%clk 0:00:39]}  Nxd7 {[%clk 0:00:09]} 44. Rf7+ {[%clk 0:00:40]}  Kg8 {[%clk 0:00:10]} 45. Rxd7 {[%clk 0:00:41]} 1-0


[Site "https://www.chess.com"]

[Event "Titled Tuesday Blitz April 25 Early 2023"]
[White "Chakravarthi Reddy, M"]
[Black "Turzo, Attila"]
[WhiteFideId "25009532"]
[BlackFideId "704954"]
[WhiteElo "2201"]
[BlackElo "2467"]
[Result "0-1"]
[Round "04"]
[TimeControl "180+2"]
[Date "2023.04.25"]
[WhiteClock "0:00:07"]
[BlackClock "0:00:29"]

1. e4 {[%clk 0:03:00]}  c5 {[%clk 0:03:00]} 2. Nf3 {[%clk 0:03:00]}  Nc6 {[%clk 0:03:00]} 3. Bb5 {[%clk 0:02:59]}  g6 {[%clk 0:03:01]} 4. O-O {[%clk 0:02:59]}  Bg7 {[%clk 0:03:01]} 5. Re1 {[%clk 0:02:59]}  e5 {[%clk 0:03:02]} 6. c3 {[%clk 0:02:53]}  a6 {[%clk 0:03:01]} 7. Bxc6 {[%clk 0:02:53]}  dxc6 {[%clk 0:03:02]} 8. h3 {[%clk 0:02:43]}  Qd3 {[%clk 0:02:50]} 9. Re3 {[%clk 0:02:32]}  Qd6 {[%clk 0:02:44]} 10. Na3 {[%clk 0:02:30]}  b5 {[%clk 0:02:44]} 11. d4 {[%clk 0:02:20]}  cxd4 {[%clk 0:02:34]} 12. cxd4 {[%clk 0:02:20]}  c5 {[%clk 0:02:35]} 13. d5 {[%clk 0:02:17]}  Ne7 {[%clk 0:02:30]} 14. Rc3 {[%clk 0:02:13]}  O-O {[%clk 0:02:24]} 15. Be3 {[%clk 0:02:11]}  c4 {[%clk 0:02:25]} 16. b4 {[%clk 0:02:02]}  Bd7 {[%clk 0:02:19]} 17. Bc5 {[%clk 0:01:58]}  Qf6 {[%clk 0:02:19]} 18. Nc2 {[%clk 0:01:53]}  Rfe8 {[%clk 0:02:17]} 19. Ne3 {[%clk 0:01:49]}  Nc8 {[%clk 0:02:16]} 20. d6 {[%clk 0:01:43]}  Qd8 {[%clk 0:01:53]} 21. Nd5 {[%clk 0:01:36]}  Rb8 {[%clk 0:01:53]} 22. Nc7 {[%clk 0:01:24]}  a5 {[%clk 0:01:40]} 23. a3 {[%clk 0:01:20]}  a4 {[%clk 0:01:37]} 24. Nxe8 {[%clk 0:01:14]}  Qxe8 {[%clk 0:01:37]} 25. Qd2 {[%clk 0:01:09]}  Bc6 {[%clk 0:01:33]} 26. Rd1 {[%clk 0:01:06]}  Qd7 {[%clk 0:01:31]} 27. Qg5 {[%clk 0:01:04]}  f6 {[%clk 0:01:30]} 28. Qe3 {[%clk 0:01:02]}  Bf8 {[%clk 0:01:26]} 29. Rc2 {[%clk 0:00:59]}  Qe6 {[%clk 0:01:20]} 30. Rcd2 {[%clk 0:00:56]}  Rb7 {[%clk 0:01:21]} 31. Ne1 {[%clk 0:00:46]}  Rd7 {[%clk 0:01:20]} 32. Nf3 {[%clk 0:00:42]}  Nxd6 {[%clk 0:01:20]} 33. Bxd6 {[%clk 0:00:40]}  Bxd6 {[%clk 0:01:12]} 34. Qb6 {[%clk 0:00:41]}  Bf8 {[%clk 0:01:05]} 35. Rxd7 {[%clk 0:00:27]}  Bxd7 {[%clk 0:01:05]} 36. Qd8 {[%clk 0:00:26]}  Bc6 {[%clk 0:01:02]} 37. Nh2 {[%clk 0:00:19]}  h5 {[%clk 0:00:52]} 38. g4 {[%clk 0:00:18]}  Qe7 {[%clk 0:00:51]} 39. Qc8 {[%clk 0:00:14]}  Bb7 {[%clk 0:00:51]} 40. Qb8 {[%clk 0:00:14]}  Bxe4 {[%clk 0:00:48]} 41. gxh5 {[%clk 0:00:13]}  gxh5 {[%clk 0:00:48]} 42. f3 {[%clk 0:00:13]}  Bc2 {[%clk 0:00:42]} 43. Rd2 {[%clk 0:00:13]}  Bf5 {[%clk 0:00:41]} 44. Rg2+ {[%clk 0:00:13]}  Kh7 {[%clk 0:00:37]} 45. h4 {[%clk 0:00:13]}  c3 {[%clk 0:00:37]} 46. Nf1 {[%clk 0:00:08]}  c2 {[%clk 0:00:36]} 47. Rxc2 {[%clk 0:00:07]}  Bxc2 {[%clk 0:00:36]} 48. Qc8 {[%clk 0:00:07]}  Bd3 {[%clk 0:00:32]} 49. Ne3 {[%clk 0:00:07]}  Qa7 {[%clk 0:00:29]} 50. Kf2 {[%clk 0:00:07]}  Bh6 {[%clk 0:00:29]} 0-1


[Site "https://www.chess.com"]

[Event "Titled Tuesday Blitz April 25 Early 2023"]
[White "Grossboss19"]
[Black "Staudenhocker43"]
[WhiteElo "2251"]
[BlackElo "2466"]
[Result "0-1"]
[Round "04"]
[TimeControl "180+2"]
[Date "2023.04.25"]
[WhiteClock "0:00:12"]
[BlackClock "0:00:27"]

1. e4 {[%clk 0:03:00]}  c6 {[%clk 0:03:00]} 2. Nf3 {[%clk 0:02:59]}  d5 {[%clk 0:03:01]} 3. Nc3 {[%clk 0:02:59]}  dxe4 {[%clk 0:03:01]} 4. Nxe4 {[%clk 0:02:58]}  Nf6 {[%clk 0:03:01]} 5. Qe2 {[%clk 0:02:54]}  Nxe4 {[%clk 0:03:01]} 6. Qxe4 {[%clk 0:02:55]}  Nd7 {[%clk 0:03:01]} 7. Bc4 {[%clk 0:02:52]}  Nf6 {[%clk 0:03:01]} 8. Qe2 {[%clk 0:02:52]}  Bf5 {[%clk 0:02:56]} 9. d3 {[%clk 0:02:52]}  e6 {[%clk 0:02:56]} 10. O-O {[%clk 0:02:49]}  Be7 {[%clk 0:02:55]} 11. a4 {[%clk 0:02:48]}  O-O {[%clk 0:02:54]} 12. h3 {[%clk 0:02:47]}  h6 {[%clk 0:02:53]} 13. Bf4 {[%clk 0:02:47]}  a5 {[%clk 0:02:48]} 14. Rad1 {[%clk 0:02:33]}  Bd6 {[%clk 0:02:46]} 15. Bxd6 {[%clk 0:02:28]}  Qxd6 {[%clk 0:02:47]} 16. c3 {[%clk 0:02:27]}  Rad8 {[%clk 0:02:38]} 17. d4 {[%clk 0:02:25]}  Bh7 {[%clk 0:02:30]} 18. Rfe1 {[%clk 0:02:23]}  Rfe8 {[%clk 0:02:25]} 19. Ne5 {[%clk 0:02:20]}  Nd7 {[%clk 0:02:18]} 20. f4 {[%clk 0:02:14]}  Nb6 {[%clk 0:02:03]} 21. Bb3 {[%clk 0:01:58]}  Nd5 {[%clk 0:01:58]} 22. Qf2 {[%clk 0:01:57]}  f6 {[%clk 0:01:47]} 23. Nc4 {[%clk 0:01:38]}  Qc7 {[%clk 0:01:46]} 24. g3 {[%clk 0:01:34]}  Kh8 {[%clk 0:01:42]} 25. Re2 {[%clk 0:01:27]}  Re7 {[%clk 0:01:27]} 26. Ne3 {[%clk 0:01:25]}  Rde8 {[%clk 0:01:21]} 27. Rde1 {[%clk 0:01:24]}  Be4 {[%clk 0:01:19]} 28. Nf1 {[%clk 0:01:05]}  Bf5 {[%clk 0:01:11]} 29. g4 {[%clk 0:01:01]}  Bd3 {[%clk 0:01:10]} 30. Rd2 {[%clk 0:00:59]}  Nxf4 {[%clk 0:01:03]} 31. Qh2 {[%clk 0:00:53]}  Bxf1 {[%clk 0:01:00]} 32. Kxf1 {[%clk 0:00:51]}  e5 {[%clk 0:00:58]} 33. dxe5 {[%clk 0:00:51]}  Rxe5 {[%clk 0:00:57]} 34. Rxe5 {[%clk 0:00:46]}  Qxe5 {[%clk 0:00:58]} 35. Qg3 {[%clk 0:00:38]}  Qe4 {[%clk 0:00:47]} 36. Rd1 {[%clk 0:00:12]}  Qh1+ {[%clk 0:00:28]} 37. Qg1 {[%clk 0:00:12]}  Qxh3+ {[%clk 0:00:27]} 0-1


[Site "https://www.chess.com"]

[Event "Titled Tuesday Blitz April 25 Early 2023"]
[White "Tanmay Jain"]
[Black "Singh, Arvinder Preet"]
[WhiteFideId "45015481"]
[BlackFideId "5013240"]
[WhiteElo "2032"]
[BlackElo "2124"]
[Result "1-0"]
[Round "04"]
[TimeControl "180+2"]
[Date "2023.04.25"]
[WhiteClock "0:02:29"]
[BlackClock "0:02:29"]

1. e4 {[%clk 0:03:00]}  c5 {[%clk 0:02:59]} 2. Nf3 {[%clk 0:03:01]}  d6 {[%clk 0:03:00]} 3. g3 {[%clk 0:03:01]}  Nc6 {[%clk 0:02:59]} 4. Bg2 {[%clk 0:03:01]}  g6 {[%clk 0:02:59]} 5. d4 {[%clk 0:03:01]}  cxd4 {[%clk 0:02:59]} 6. Nxd4 {[%clk 0:03:02]}  Bg7 {[%clk 0:02:59]} 7. Be3 {[%clk 0:03:03]}  Nf6 {[%clk 0:02:58]} 8. h3 {[%clk 0:03:02]}  Bd7 {[%clk 0:02:53]} 9. O-O {[%clk 0:03:02]}  O-O {[%clk 0:02:53]} 10. Nxc6 {[%clk 0:03:00]}  Bxc6 {[%clk 0:02:52]} 11. Nc3 {[%clk 0:03:00]}  a6 {[%clk 0:02:51]} 12. Qd2 {[%clk 0:02:59]}  Rc8 {[%clk 0:02:51]} 13. Rad1 {[%clk 0:02:56]}  Re8 {[%clk 0:02:50]} 14. Bd4 {[%clk 0:02:47]}  Qa5 {[%clk 0:02:43]} 15. a3 {[%clk 0:02:42]}  b5 {[%clk 0:02:41]} 16. Qe3 {[%clk 0:02:40]}  b4 {[%clk 0:02:32]} 17. Bb6 {[%clk 0:02:34]}  Qb5 {[%clk 0:02:30]} 18. Nxb5 {[%clk 0:02:33]}  Bxb5 {[%clk 0:02:29]} 19. Rfe1 {[%clk 0:02:29]} 1-0


[Site "https://www.chess.com"]